fUST/lending_fUST_20240826
["ID","MTS","AMOUNT","RATE_DAILY","PERIOD"]
[335980459,1724650247803,-500.0,0.0001283,2]
[335980460,1724650247813,-500.0,0.0001283,2]
[335980461,1724650247823,-500.0,0.0001283,2]
[335980462,1724650247833,-500.0,0.0001283,2]
[335980463,1724650247842,-500.0,0.0001283,2]
[335980464,1724650247852,-500.0,0.0001283,2]
[335980465,1724650247861,-500.0,0.0001283,2]
[335980466,1724650247871,-585.62,0.0001283,2]
[335980467,1724650247884,-500.0,0.0001283,2]
[335980468,1724650247894,-521.22,0.0001283,2]
[335980469,1724650247904,-500.0,0.0001283,2]
[335980470,1724650247913,-500.0,0.0001283,2]
[335980471,1724650247923,-500.0,0.0001283,2]
[335980472,1724650247933,-500.0,0.0001283,2]
[335980473,1724650247942,-183.94969575,0.0001283,2]
[335980474,1724650247952,-500.0,0.0001283,2]
[335980475,1724650247962,-778.5,0.0001283,2]
[335980476,1724650247971,-500.0,0.0001283,2]
[335980477,1724650247981,-500.0,0.0001283,2]
[335980478,1724650247991,-500.0,0.0001283,2]
[335980479,1724650248000,-500.0,0.0001283,2]
[335980480,1724650248010,-500.0,0.0001283,2]
[335980481,1724650248020,-500.0,0.0001283,2]
[335980482,1724650248030,-500.0,0.0001283,2]
[335980483,1724650248039,-500.0,0.0001283,2]
[335980484,1724650248049,-500.0,0.0001283,2]
[335980485,1724650248059,-500.0,0.0001283,2]
[335980486,1724650248068,-500.0,0.0001283,2]
[335980487,1724650248078,-303.36015944,0.0001283,2]
[335980488,1724650248087,-500.0,0.0001283,2]
[335980489,1724650248096,-500.0,0.0001283,2]
[335980490,1724650248106,-342.97938714,0.0001283,2]
[335980491,1724650248115,-500.0,0.0001283,2]
[335980492,1724650248124,-500.0,0.0001283,2]
[335980493,1724650248134,-890.63,0.0001283,2]
[335980494,1724650248143,-949.21,0.0001283,2]
[335980495,1724650248152,-500.0,0.0001283,2]
[335980496,1724650248162,-500.0,0.0001283,2]
[335980497,1724650248171,-500.0,0.0001283,2]
[335980498,1724650248181,-500.0,0.0001283,2]
[335980499,1724650248191,-500.0,0.0001283,2]
[335980500,1724650248201,-532.63,0.0001283,2]
[335980501,1724650248210,-820.54,0.0001283,2]
[335980502,1724650248219,-1179.37,0.0001283,2]
[335980503,1724650248229,-500.0,0.0001283,2]
[335980504,1724650248238,-520.08,0.0001283,2]
[335980505,1724650248247,-500.0,0.0001283,2]
[335980506,1724650248257,-500.0,0.0001283,2]
[335980507,1724650248267,-969.63,0.0001283,2]
[335980508,1724650248276,-500.0,0.0001283,2]
[335980509,1724650248286,-500.0,0.0001283,2]
[335980510,1724650248295,-500.0,0.0001283,2]
[335980511,1724650248308,-543.69,0.0001283,2]
[335980512,1724650248321,-500.0,0.0001283,2]
[335980513,1724650248331,-500.0,0.0001283,2]
[335980514,1724650248340,-500.0,0.0001283,2]
[335980515,1724650248351,-500.0,0.0001283,2]
[335980516,1724650248360,-500.0,0.0001283,2]
[335980517,1724650248370,-500.0,0.0001283,2]
[335980518,1724650248380,-500.0,0.0001283,2]
[335980519,1724650248391,-500.0,0.0001283,2]
[335980520,1724650248401,-500.0,0.0001283,2]
[335980521,1724650248411,-500.0,0.0001283,2]
[335980522,1724650248421,-500.0,0.0001283,2]
[335980523,1724650248430,-527.75,0.0001283,2]
[335980524,1724650248440,-500.0,0.0001283,2]
[335980525,1724650248449,-545.64,0.0001283,2]
[335980526,1724650248459,-211.98822254,0.0001283,2]
[335980527,1724650248469,-500.0,0.0001283,2]
[335980528,1724650248478,-500.0,0.0001283,2]
[335980529,1724650248488,-513.44,0.0001283,2]
[335980530,1724650248498,-500.0,0.0001283,2]
[335980531,1724650248507,-500.0,0.0001283,2]
[335980532,1724650248519,-500.0,0.0001283,2]
[335980533,1724650248529,-500.0,0.0001283,2]
[335980534,1724650248539,-500.0,0.0001283,2]
[335980535,1724650248548,-500.0,0.0001283,2]
[335980536,1724650248557,-500.0,0.0001283,2]
[335980537,1724650248567,-500.0,0.0001283,2]
[335980538,1724650248577,-500.0,0.0001283,2]
[335980539,1724650248586,-500.0,0.0001283,2]
[335980540,1724650248596,-631.52985006,0.0001283,2]
[335980541,1724650248605,-604.71,0.0001283,2]
[335980542,1724650248615,-500.0,0.0001283,2]
[335980543,1724650248625,-500.0,0.0001283,2]
[335980544,1724650248635,-661.12,0.0001283,2]
[335980545,1724650248645,-500.0,0.0001283,2]
[335980546,1724650248654,-500.0,0.0001283,2]
[335980547,1724650248663,-500.0,0.0001283,2]
[335980548,1724650248674,-452.16186496,0.0001283,2]
[335980549,1724650248683,-500.0,0.0001283,2]
[335980550,1724650248693,-500.0,0.0001283,2]
[335980551,1724650248703,-507.2,0.0001283,2]
[335980552,1724650248712,-619.28,0.0001283,2]
[335980553,1724650248722,-500.0,0.0001283,2]
[335980554,1724650248731,-500.0,0.0001283,2]
[335980555,1724650248742,-500.0,0.0001283,2]
[335980556,1724650248752,-500.0,0.0001283,2]
[335980557,1724650248762,-500.0,0.0001283,2]
[335980558,1724650248775,-500.0,0.0001283,2]
[335980559,1724650248786,-500.0,0.0001283,2]
[335980560,1724650248796,-662.87,0.0001283,2]
[335980561,1724650248805,-500.0,0.00012831,2]
[335980562,1724650248815,-533.52,0.00012831,2]
[335980563,1724650248825,-1065.11,0.00012831,2]
[335980564,1724650248834,-650.59,0.00012831,2]
[335980565,1724650248844,-500.0,0.00012831,2]
[335980566,1724650248853,-500.0,0.00012831,2]
[335980567,1724650248863,-558.36,0.00012831,2]
[335980568,1724650248872,-500.0,0.00012831,2]
[335980569,1724650248881,-632.22,0.00012831,2]
[335980570,1724650248891,-500.0,0.00012831,2]
[335980571,1724650248901,-503.42,0.00012831,2]
[335980572,1724650248910,-517.43,0.00012831,2]
[335980573,1724650248920,-500.0,0.00012831,2]
[335980574,1724650248930,-500.0,0.00012831,2]
[335980575,1724650248939,-1065.37,0.00012831,2]
[335980576,1724650248949,-500.0,0.00012831,2]
[335980577,1724650248959,-548.17,0.00012831,2]
[335980578,1724650248969,-696.98,0.00012831,2]
[335980579,1724650248979,-514.61,0.00012831,2]
[335980580,1724650248989,-605.07,0.00012831,2]
[335980581,1724650248998,-571.71,0.00012831,2]
[335980582,1724650249008,-500.0,0.00012831,2]
[335980583,1724650249018,-500.0,0.00012831,2]
[335980584,1724650249028,-275.28902566,0.00012831,2]
[335980585,1724650249038,-500.0,0.00012831,2]
[335980586,1724650249047,-500.0,0.00012831,2]
[335980587,1724650249057,-500.0,0.00012831,2]
[335980588,1724650249066,-500.0,0.00012831,2]
[335980589,1724650249076,-500.0,0.00012831,2]
[335980590,1724650249086,-368.56981019,0.00012831,2]
[335980591,1724650249096,-878.22,0.00012831,2]
[335980592,1724650249106,-500.0,0.00012831,2]
[335980593,1724650249116,-500.0,0.00012831,2]
[335980594,1724650249126,-837.41,0.00012831,2]
[335980595,1724650249135,-500.0,0.00012831,2]
[335980596,1724650249144,-947.98,0.00012831,2]
[335980597,1724650249154,-892.05,0.00012831,2]
[335980598,1724650249163,-853.15,0.00012831,2]
[335980599,1724650249173,-637.09,0.00012831,2]
[335980600,1724650249182,-771.48,0.00012831,2]
[335980601,1724650249192,-529.61,0.00012831,2]
[335980602,1724650249201,-500.0,0.00012831,2]
[335980603,1724650249216,-500.0,0.00012831,2]
[335980604,1724650249230,-762.81,0.00012831,2]
[335980605,1724650249239,-939.72,0.00012831,2]
[335980606,1724650249249,-538.01,0.00012831,2]
[335980607,1724650249259,-692.27,0.00012831,2]
[335980608,1724650249268,-500.0,0.00012831,2]
[335980609,1724650249278,-397.90241586,0.00012831,2]
[335980610,1724650249288,-500.0,0.00012831,2]
[335980611,1724650249299,-500.0,0.00012831,2]
[335980612,1724650249314,-648.08,0.00012831,2]
[335980613,1724650249325,-500.0,0.00012831,2]
[335980614,1724650249335,-605.5,0.00012831,2]
[335980615,1724650249347,-651.59,0.00012831,2]
[335980616,1724650249357,-500.0,0.00012831,2]
[335980617,1724650249367,-918.77,0.00012831,2]
[335980618,1724650249377,-500.0,0.00012831,2]
[335980619,1724650249388,-837.79,0.00012831,2]
[335980620,1724650249399,-593.29,0.00012831,2]
[335980621,1724650249409,-855.96,0.00012831,2]
[335980622,1724650249419,-500.0,0.00012831,2]
[335980623,1724650249429,-513.41544131,0.00012831,2]
[335980624,1724650249439,-534.55,0.00012831,2]
[335980625,1724650249450,-500.0,0.00012831,2]
[335980626,1724650249460,-500.0,0.00012831,2]
[335980627,1724650249470,-521.77,0.00012831,2]
[335980628,1724650249482,-694.18,0.00012831,2]
[335980629,1724650249494,-874.63,0.00012831,2]
[335980630,1724650249505,-500.0,0.00012831,2]
[335980631,1724650249516,-1059.92669404,0.0001285,2]
[335980632,1724650249530,-1500.9048068,0.00012898,2]
[335980633,1724650249542,-7995.22978419,0.000129,2]
[335980634,1724650249553,-2597.51595188,0.00012971,2]
[335980635,1724650249563,-500.0,0.00012972,2]
[335980636,1724650249573,-493.69395889,0.00012985,2]
[335980637,1724650249583,-646.96149808,0.00013,2]
[335980638,1724650249593,-863.13231421,0.00013,2]
[335980639,1724650249604,-558.4,0.00013083,2]
[335980640,1724650249615,-865.51,0.00013083,2]
[335980641,1724650249625,-500.0,0.00013083,2]
[335980642,1724650249635,-500.0,0.00013093,2]
[335980643,1724650249645,-9543.39,0.00013093,2]
[335980644,1724650249661,-2405.69,0.00013093,2]
[335980645,1724650249671,-3996.92,0.00013093,2]
[335980646,1724650249682,-656.04,0.00013093,2]
[335980647,1724650249693,-2925.05,0.00013093,2]
[335980648,1724650249703,-500.0,0.00013093,2]
[335980649,1724650249714,-500.0,0.00013093,2]
[335980650,1724650249724,-1190.65,0.00013093,2]
[335980651,1724650249734,-500.0,0.00013093,2]
[335980652,1724650249744,-513.98,0.00013093,2]
[335980653,1724650249755,-611.7,0.00013093,2]
[335980654,1724650249765,-500.0,0.00013093,2]
[335980655,1724650249776,-500.0,0.00013093,2]
[335980656,1724650249787,-22994.88,0.00013093,2]
[335980657,1724650249797,-500.0,0.00013093,2]
[335980658,1724650249808,-623.28,0.00013093,2]
[335980659,1724650249818,-595.72,0.00013093,2]
[335980660,1724650249828,-667.42,0.00013093,2]
[335980661,1724650249838,-1358.48,0.00013093,2]
[335980662,1724650249849,-500.0,0.00013093,2]
[335980663,1724650249859,-500.0,0.00013093,2]
[335980664,1724650249869,-500.0,0.00013093,2]
[335980665,1724650249879,-1125.94,0.00013093,2]
[335980666,1724650249889,-986.66,0.00013093,2]
[335980667,1724650249900,-6027.87,0.00013093,2]
[335980668,1724650249910,-500.0,0.00013093,2]
[335980669,1724650249920,-639.95,0.00013093,2]
[335980670,1724650249931,-719.62,0.00013093,2]
[335980671,1724650249941,-500.0,0.00013093,2]
[335980672,1724650249951,-535.91,0.00013093,2]
[335980673,1724650249962,-8517.74,0.00013093,2]
[335980674,1724650249972,-500.0,0.00013093,2]
[335980675,1724650249982,-500.0,0.00013093,2]
[335980676,1724650249996,-1901.09,0.00013093,2]
[335980677,1724650250007,-500.0,0.00013093,2]
[335980678,1724650250019,-500.0,0.00013093,2]
[335980679,1724650250030,-541.1,0.00013093,2]
[335980680,1724650250040,-500.0,0.00013093,2]
[335980681,1724650250050,-1667.71,0.00013093,2]
[335980682,1724650250060,-770.65,0.00013093,2]
[335980683,1724650250070,-500.0,0.00013093,2]
[335980684,1724650250080,-500.0,0.00013094,2]
[335980685,1724650250090,-741.16,0.00013094,2]
[335980686,1724650250101,-500.0,0.00013094,2]
[335980687,1724650250111,-500.0,0.00013094,2]
[335980688,1724650250121,-500.0,0.00013094,2]
[335980689,1724650250131,-500.0,0.00013094,2]
[335980690,1724650250142,-500.0,0.00013094,2]
[335980691,1724650250151,-840.02,0.00013094,2]
[335980692,1724650250161,-803.44,0.00013094,2]
[335980693,1724650250171,-500.0,0.00013094,2]
[335980694,1724650250181,-575.83,0.00013094,2]
[335980695,1724650250191,-500.0,0.00013094,2]
[335980696,1724650250202,-640.78,0.00013094,2]
[335980697,1724650250213,-500.0,0.00013094,2]
[335980698,1724650250225,-663.69,0.00013094,2]
[335980699,1724650250235,-500.0,0.00013094,2]
[335980700,1724650250248,-665.74,0.00013094,2]
[335980701,1724650250258,-500.0,0.00013094,2]
[335980702,1724650250269,-760.06,0.00013094,2]
[335980703,1724650250278,-500.0,0.00013094,2]
[335980704,1724650250288,-937.63,0.00013094,2]
[335980705,1724650250298,-500.0,0.00013094,2]
[335980706,1724650250313,-835.31,0.00013094,2]
[335980707,1724650250322,-500.0,0.00013094,2]
[335980708,1724650250332,-549.53,0.00013094,2]
[335980709,1724650250342,-500.0,0.00013094,2]
[335980710,1724650250354,-754.27,0.00013094,2]
[335980711,1724650250363,-500.0,0.00013094,2]
[335980712,1724650250374,-500.0,0.00013094,2]
[335980713,1724650250385,-517.95,0.00013094,2]
[335980714,1724650250398,-500.0,0.00013094,2]
[335980715,1724650250409,-500.0,0.00013094,2]
[335980716,1724650250423,-500.0,0.00013094,2]
[335980717,1724650250433,-874.82,0.00013094,2]
[335980718,1724650250443,-500.0,0.00013094,2]
[335980719,1724650250454,-500.0,0.00013094,2]
[335980720,1724650250463,-796.99,0.00013094,2]
[335980721,1724650250473,-530.55944719,0.00013094,2]
[335980722,1724650250483,-598.16,0.00013094,2]
[335980723,1724650250493,-622.53,0.00013094,2]
[335980724,1724650250503,-500.0,0.00013094,2]
[335980725,1724650250513,-649.38,0.00013094,2]
[335980726,1724650250525,-855.92,0.00013094,2]
[335980727,1724650250536,-500.0,0.00013094,2]
[335980728,1724650250546,-664.25,0.00013094,2]
[335980729,1724650250556,-539.36,0.00013094,2]
[335980730,1724650250566,-698.27,0.00013094,2]
[335980731,1724650250576,-3212.28,0.00013094,2]
[335980732,1724650250586,-500.0,0.00013094,2]
[335980733,1724650250596,-500.0,0.00013094,2]
[335980734,1724650250606,-570.46,0.00013094,2]
[335980735,1724650250617,-500.0,0.00013094,2]
[335980736,1724650250626,-695.6,0.00013094,2]
[335980737,1724650250636,-500.0,0.00013094,2]
[335980738,1724650250646,-604.91,0.00013094,2]
[335980739,1724650250655,-913.36,0.00013094,2]
[335980740,1724650250666,-732.61,0.00013094,2]
[335980741,1724650250676,-445.10685567,0.00013094,2]
[335980742,1724650250686,-500.0,0.00013094,2]
[335980743,1724650250696,-1044.14,0.00013094,2]
[335980744,1724650250706,-519.46,0.00013094,2]
[335980745,1724650250716,-7810.31,0.00013094,2]
[335980746,1724650250726,-503.58,0.00013094,2]
[335980747,1724650250736,-1421.11,0.00013094,2]
[335980748,1724650250746,-4093.82,0.00013094,2]
[335980749,1724650250756,-568.77,0.00013094,2]
[335980750,1724650250765,-599.41,0.00013094,2]
[335980751,1724650250777,-566.0,0.00013094,2]
[335980752,1724650250787,-500.0,0.00013094,2]
[335980753,1724650250796,-569.5,0.00013094,2]
[335980754,1724650250807,-500.0,0.00013094,2]
[335980755,1724650250817,-500.0,0.00013094,2]
[335980756,1724650250827,-812.56,0.00013094,2]
[335980757,1724650250836,-500.0,0.00013094,2]
[335980758,1724650250847,-586.8,0.00013094,2]
[335980759,1724650250857,-500.0,0.00013094,2]
[335980760,1724650250867,-925.84,0.00013094,2]
[335980761,1724650250877,-500.0,0.00013094,2]
[335980762,1724650250887,-500.0,0.00013094,2]
[335980763,1724650250898,-661.03,0.00013094,2]
[335980764,1724650250908,-837.92,0.00013094,2]
[335980765,1724650250918,-500.0,0.00013094,2]
[335980766,1724650250928,-518.36395015,0.00013094,2]
[335980767,1724650250938,-663.23,0.00013094,2]
[335980768,1724650250948,-500.0,0.00013094,2]
[335980769,1724650250958,-553.7,0.00013094,2]
[335980770,1724650250968,-546.73,0.00013094,2]
[335980771,1724650250978,-526.03835976,0.00013094,2]
[335980772,1724650250988,-637.51,0.00013094,2]
[335980773,1724650250998,-154.778239,0.000131,2]
[335980774,1724650251008,-500.0,0.00013104,2]
[335980775,1724650251019,-616.13,0.00013104,2]
[335980776,1724650251029,-500.0,0.00013104,2]
[335980777,1724650251039,-500.0,0.00013104,2]
[335980778,1724650251050,-500.0,0.00013104,2]
[335980779,1724650251061,-500.0,0.00013104,2]
[335980780,1724650251071,-500.0,0.00013104,2]
[335980781,1724650251081,-500.0,0.00013104,2]
[335980782,1724650251091,-500.0,0.00013104,2]
[335980783,1724650251102,-500.0,0.00013104,2]
[335980784,1724650251112,-500.0,0.00013104,2]
[335980785,1724650251122,-500.0,0.00013104,2]
[335980786,1724650251132,-500.0,0.00013104,2]
[335980787,1724650251142,-500.0,0.00013104,2]
[335980788,1724650251152,-388.40555043,0.00013104,2]
[335980789,1724650252062,-500.0,0.00012272,2]
[335980790,1724650252073,-111.59444957,0.00013104,2]
[335980791,1724650252082,-350.74123498,0.00013104,2]
[335980792,1724650252531,-500.0,0.00012261,2]
[335980793,1724650252541,-500.0,0.00012261,2]
[335980794,1724650252551,-500.0,0.00012271,2]
[335980795,1724650252560,-500.0,0.00012282,2]
[335980796,1724650252570,-500.0,0.00012282,2]
[335980797,1724650252580,-500.0,0.00012535,2]
[335980798,1724650252591,-500.0,0.00012545,2]
[335980799,1724650252601,-500.0,0.00012556,2]
[335980800,1724650252611,-500.0,0.00012556,2]
[335980801,1724650252621,-522.42,0.00012809,2]
[335980802,1724650252631,-500.0,0.00012819,2]
[335980803,1724650252640,-500.0,0.0001283,2]
[335980804,1724650252649,-200.58,0.00013093,2]
[335980805,1724650252659,-149.25876502,0.00013104,2]
[335980806,1724650252669,-500.0,0.00013104,2]
[335980807,1724650252678,-585.62,0.00013104,2]
[335980808,1724650252687,-500.0,0.00013104,2]
[335980809,1724650252697,-521.22,0.00013104,2]
[335980810,1724650252707,-500.0,0.00013104,2]
[335980811,1724650252716,-500.0,0.00013104,2]
[335980812,1724650252726,-500.0,0.00013104,2]
[335980813,1724650252735,-500.0,0.00013104,2]
[335980814,1724650252744,-500.0,0.00013104,2]
[335980815,1724650252754,-778.5,0.00013104,2]
[335980816,1724650252763,-500.0,0.00013104,2]
[335980817,1724650252773,-500.0,0.00013104,2]
[335980818,1724650252787,-500.0,0.00013104,2]
[335980819,1724650252797,-500.0,0.00013104,2]
[335980820,1724650252807,-500.0,0.00013104,2]
[335980821,1724650252816,-500.0,0.00013104,2]
[335980822,1724650252825,-500.0,0.00013104,2]
[335980823,1724650252834,-500.0,0.00013104,2]
[335980824,1724650252844,-500.0,0.00013104,2]
[335980825,1724650252853,-500.0,0.00013104,2]
[335980826,1724650252863,-500.0,0.00013104,2]
[335980827,1724650252873,-500.0,0.00013104,2]
[335980828,1724650252882,-500.0,0.00013104,2]
[335980829,1724650252892,-500.0,0.00013104,2]
[335980830,1724650252902,-500.0,0.00013104,2]
[335980831,1724650252912,-890.63,0.00013104,2]
[335980832,1724650252921,-949.21,0.00013104,2]
[335980833,1724650252931,-245.43634297,0.00013104,2]
[335980834,1724650252940,-500.0,0.00013104,2]
[335980835,1724650252949,-500.0,0.00013104,2]
[335980836,1724650252959,-500.0,0.00013104,2]
[335980837,1724650252968,-532.63,0.00013104,2]
[335980838,1724650252978,-820.54,0.00013104,2]
[335980839,1724650252987,-1179.37,0.00013104,2]
[335980840,1724650252997,-500.0,0.00013104,2]
[335980841,1724650253006,-520.08,0.00013104,2]
[335980842,1724650253016,-500.0,0.00013104,2]
[335980843,1724650253026,-500.0,0.00013104,2]
[335980844,1724650253036,-969.63,0.00013104,2]
[335980845,1724650253045,-500.0,0.00013104,2]
[335980846,1724650253055,-500.0,0.00013104,2]
[335980847,1724650253065,-500.0,0.00013104,2]
[335980848,1724650253074,-543.69,0.00013104,2]
[335980849,1724650253083,-500.0,0.00013104,2]
[335980850,1724650253093,-500.0,0.00013104,2]
[335980851,1724650253102,-500.0,0.00013104,2]
[335980852,1724650253112,-500.0,0.00013104,2]
[335980853,1724650253121,-500.0,0.00013104,2]
[335980854,1724650253130,-500.0,0.00013104,2]
[335980855,1724650253140,-500.0,0.00013104,2]
[335980856,1724650253150,-500.0,0.00013104,2]
[335980857,1724650253159,-500.0,0.00013104,2]
[335980858,1724650253168,-500.0,0.00013104,2]
[335980859,1724650253178,-500.0,0.00013104,2]
[335980860,1724650253188,-527.75,0.00013104,2]
[335980861,1724650253197,-500.0,0.00013104,2]
[335980862,1724650253206,-545.64,0.00013104,2]
[335980863,1724650253216,-500.0,0.00013104,2]
[335980864,1724650253226,-500.0,0.00013104,2]
[335980865,1724650253236,-513.44,0.00013104,2]
[335980866,1724650253246,-500.0,0.00013104,2]
[335980867,1724650253255,-500.0,0.00013104,2]
[335980868,1724650253265,-500.0,0.00013104,2]
[335980869,1724650253274,-638.04063436,0.00013104,2]
[335980870,1724650253284,-500.0,0.00013104,2]
[335980871,1724650253294,-174.18260787,0.00013104,2]
[335980872,1724650253304,-500.0,0.00013104,2]
[335980873,1724650253319,-500.0,0.00013104,2]
[335980874,1724650253329,-500.0,0.00013104,2]
[335980875,1724650253338,-500.0,0.00013104,2]
[335980876,1724650253348,-604.71,0.00013104,2]
[335980877,1724650253358,-500.0,0.00013104,2]
[335980878,1724650253368,-500.0,0.00013104,2]
[335980879,1724650253378,-661.12,0.00013104,2]
[335980880,1724650253388,-500.0,0.00013104,2]
[335980881,1724650253398,-500.0,0.00013104,2]
[335980882,1724650253407,-500.0,0.00013104,2]
[335980883,1724650253417,-500.0,0.00013104,2]
[335980884,1724650253426,-601.60220496,0.00013104,2]
[335980885,1724650253436,-507.2,0.00013104,2]
[335980886,1724650253446,-619.28,0.00013104,2]
[335980887,1724650253456,-500.0,0.00013104,2]
[335980888,1724650253466,-500.0,0.00013104,2]
[335980889,1724650253475,-500.0,0.00013104,2]
[335980890,1724650253486,-500.0,0.00013104,2]
[335980891,1724650253495,-500.0,0.00013104,2]
[335980892,1724650253505,-500.0,0.00013104,2]
[335980893,1724650253514,-662.87,0.00013104,2]
[335980894,1724650253523,-533.52,0.00013105,2]
[335980895,1724650253533,-1065.11,0.00013105,2]
[335980896,1724650253543,-650.59,0.00013105,2]
[335980897,1724650253557,-500.0,0.00013105,2]
[335980898,1724650253571,-500.0,0.00013105,2]
[335980899,1724650253585,-500.0,0.00013105,2]
[335980900,1724650253599,-632.22,0.00013105,2]
[335980901,1724650253611,-500.0,0.00013105,2]
[335980902,1724650253623,-503.42,0.00013105,2]
[335980903,1724650253637,-517.43,0.00013105,2]
[335980904,1724650253650,-500.0,0.00013105,2]
[335980905,1724650253664,-500.0,0.00013105,2]
[335980906,1724650253678,-1065.37,0.00013105,2]
[335980907,1724650253692,-500.0,0.00013105,2]
[335980908,1724650253705,-548.17,0.00013105,2]
[335980909,1724650253719,-696.98,0.00013105,2]
[335980910,1724650253732,-514.61,0.00013105,2]
[335980911,1724650253745,-605.07,0.00013105,2]
[335980912,1724650253757,-571.71,0.00013105,2]
[335980913,1724650253770,-500.0,0.00013105,2]
[335980914,1724650253784,-500.0,0.00013105,2]
[335980915,1724650253796,-500.0,0.00013105,2]
[335980916,1724650253809,-500.0,0.00013105,2]
[335980917,1724650253822,-500.0,0.00013105,2]
[335980918,1724650253835,-500.0,0.00013105,2]
[335980919,1724650253846,-878.22,0.00013105,2]
[335980920,1724650253860,-500.0,0.00013105,2]
[335980921,1724650253872,-500.0,0.00013105,2]
[335980922,1724650253884,-837.41,0.00013105,2]
[335980923,1724650253898,-500.0,0.00013105,2]
[335980924,1724650253911,-947.98,0.00013105,2]
[335980925,1724650253925,-892.05,0.00013105,2]
[335980926,1724650253939,-853.15,0.00013105,2]
[335980927,1724650253952,-637.09,0.00013105,2]
[335980928,1724650253966,-771.48,0.00013105,2]
[335980929,1724650253979,-529.61,0.00013105,2]
[335980930,1724650253990,-500.0,0.00013105,2]
[335980931,1724650253999,-500.0,0.00013105,2]
[335980932,1724650254009,-762.81,0.00013105,2]
[335980933,1724650254021,-939.72,0.00013105,2]
[335980934,1724650254035,-538.01,0.00013105,2]
[335980935,1724650254048,-692.27,0.00013105,2]
[335980936,1724650254061,-500.0,0.00013105,2]
[335980937,1724650254072,-500.0,0.00013105,2]
[335980938,1724650254086,-500.0,0.00013105,2]
[335980939,1724650254098,-648.08,0.00013105,2]
[335980940,1724650254113,-500.0,0.00013105,2]
[335980941,1724650254126,-605.5,0.00013105,2]
[335980942,1724650254137,-651.59,0.00013105,2]
[335980943,1724650254150,-918.77,0.00013105,2]
[335980944,1724650254163,-500.0,0.00013105,2]
[335980945,1724650254176,-500.0,0.00013105,2]
[335980946,1724650254188,-837.79,0.00013105,2]
[335980947,1724650254201,-593.29,0.00013105,2]
[335980948,1724650254214,-855.96,0.00013105,2]
[335980949,1724650254226,-500.0,0.00013105,2]
[335980950,1724650254241,-534.55,0.00013105,2]
[335980951,1724650254252,-500.0,0.00013105,2]
[335980952,1724650254264,-500.0,0.00013105,2]
[335980953,1724650254275,-521.77,0.00013105,2]
[335980954,1724650254286,-694.18,0.00013105,2]
[335980955,1724650254298,-874.63,0.00013105,2]
[335980956,1724650254313,-500.0,0.00013105,2]
[335980957,1724650254324,-1000.0,0.00013121,2]
[335980958,1724650254335,-1000.0,0.00013121,2]